Cogmind - Beta 13 @@@ ROGUE MODE // 2024.05.21 @ 14:55:08 Player: Crackrock_Steady Result: Destroyed by G-47 Trooper with Particle Gun Performance ------------- Evolutions (2) 1000 Regions Visited (4) 800 Robots Destroyed (26) 130 Value Destroyed (512) 512 Prototype IDs (3) 60 Alien Tech Used (0) 0 Bonus (0) 0 TOTAL SCORE: 2502 Bonus ------- None Cogmind --------- Core Integrity 0/550 Matter 296/300 Energy 98/100 System Corruption 0% Temperature Cool (18) Movement Core (50) Location -8/Materials Parts ------- > --- POWER (1) -------- (None) > --- PROPULSION (4) --- (None) > --- UTILITY (4) ------ Hacking Suite > --- WEAPON (2) ------- (None) > --- INVENTORY (5) ---- Improved Heat Sink Experimental Sensor Array Targeting Computer Peak State ------------ > --- POWER ------------ Light Nuclear Core > --- PROPULSION ------- Aluminum Leg Improved Aluminum Leg > --- UTILITY ---------- Heat Sink Small Storage Unit Targeting Computer Hacking Suite > --- WEAPON ----------- Pulse Rifle Heavy Assault Rifle > --- INVENTORY -------- Improved Ion Engine Cesium-ion Thruster Cesium-ion Thruster Cesium-ion Thruster Experimental Sensor Array Targeting Computer Pulse Rifle Pulse Rifle [Rating: 19] Favorites ----------- Power Light Ion Engine Engine Light Ion Engine Power Core Light Nuclear Core Propulsion Aluminum Leg Leg Aluminum Leg Flight Unit Cesium-ion Thruster Utility Small Storage Unit Device Seismic Detector Storage Small Storage Unit Processor Targeting Computer Hackware Hacking Suite Weapon Heavy Assault Rifle Energy Gun Pulse Rifle Energy Cannon Particle Cannon Ballistic Gun Heavy Assault Rifle Ballistic Cannon Light Cannon Build | -11 -10 -10 -9 -8 ------- Run | Yrd Mat Min Mat Mat Slots Evolved 4 | . . . 2 2 Power . | . . . . . Propulsion 2 | . . . . 2 Utility 2 | . . . 2 . Weapon . | . . . . . Parts Attached 30 | 7 1 5 14 3 Power 4 | 1 . 1 2 . Engine 3 | 1 . 1 1 . Core 1 | . . . 1 . Reactor . | . . . . . Propulsion 10 | 2 1 . 6 1 Treads . | . . . . . Leg 7 | 2 1 . 4 . Wheel . | . . . . . Hover . | . . . . . Flight 3 | . . . 2 1 Utility 5 | 2 . 1 2 . Device 2 | 1 . . 1 . Storage 1 | 1 . . . . Processor 1 | . . 1 . . Hackware 1 | . . . 1 . Protection . | . . . . . Artifact . | . . . . . Weapon 11 | 2 . 3 4 2 Energy Gun 5 | . . 1 2 2 Energy Cannon 1 | . . . 1 . Ballistic Gun 4 | 2 . 1 1 . Ballistic Cannon 1 | . . 1 . . Launcher . | . . . . . Special Weapon . | . . . . . Impact Weapon . | . . . . . Slashing Weapon . | . . . . . Piercing Weapon . | . . . . . Special Melee Weapon . | . . . . . Unidentified Prototypes . | . . . . . Parts Lost 15 | . . 1 9 5 Power 3 | . . . 3 . Propulsion 6 | . . . 4 2 Utility 3 | . . 1 1 1 Weapon 3 | . . . 1 2 Highest Loss Streak 4 | . . 1 3 4 To Critical Strikes . | . . . . . Average Slot Usage (%) 90 | . 100 99 92 28 Engine 9 | . 14 14 2 . Core 1 | . . . 6 . Leg 22 | . 28 28 19 . Device 6 | . 14 4 9 . Storage 11 | . 14 14 10 . Processor 8 | . . 9 11 8 Hackware 4 | . . . 11 9 Energy Gun 6 | . . 7 8 7 Energy Cannon 1 | . . . 3 . Ballistic Gun 12 | . 28 14 6 . Ballistic Cannon 3 | . . 5 2 . Naked Turns . | . . . . . Heaviest Build 19 | 13 13 15 19 6 Greatest Support 23 | 20 20 20 23 5 Greatest Overweight (x) 1 | 1 . . 1 1 Average Overweight (x) . | . . . . . Largest Inventory Capacity 8 | 8 8 8 8 5 Average Capacity 7 | 7 8 8 7 5 Most Carried 8 | 5 5 8 8 4 Average Carried 6 | 1 2 7 7 3 Final Capacity 8 | 8 8 8 5 5 Final Carried 8 | 2 5 8 5 3 Class Distribution -------------------- 65% | Mutant 34% | Scavenger-Mutant Dominant Class ---------------- Mutant | -10/Materials Mutant | -10/Mines Scavenger-Mutant | -9/Materials Mutant | -8/Materials Resources | -11 -10 -10 -9 -8 ----------- Run | Yrd Mat Min Mat Mat Matter Collected 724 | 251 161 115 197 . Remotely . | . . . . . Salvage Created 740 | 28 166 134 364 48 Parts 48 | 2 13 18 14 1 Haulers Intercepted . | . . . . . Recyclers Shooed 1 | . . . 1 . Parts Field Recycled . | . . . . . Retrieved Matter . | . . . . . Parts Self-Destructed . | . . . . . Prevented . | . . . . . Kills | -11 -10 -10 -9 -8 ------- Run | Yrd Mat Min Mat Mat Combat Hostiles Destroyed 16 | . 4 5 6 1 Guns 12 | . 4 3 4 1 Cannons 4 | . . 2 2 . Classes Destroyed 8 | 1 5 . 2 . Worker 2 | . 1 1 . . Builder 2 | . 1 . 1 . Tunneler 4 | 1 . 2 1 . Recycler 1 | . . . 1 . Operator 1 | . 1 . . . Swarmer 7 | . 2 5 . . Grunt 7 | . 2 . 4 1 Sentry 2 | . . . 2 . Best Kill Streak 6 | 1 6 3 2 1 Combat Bots Only 3 | . 3 3 2 1 Max Kills in Single Turn 2 | 1 2 1 1 1 Gunslinging . | . . . . . Exploded . | . . . . . Melee . | . . . . . Uniques/NPCs Destroyed . | . . . . . Combat | -11 -10 -10 -9 -8 -------- Run | Yrd Mat Min Mat Mat Hostile Shots Fired 246 | . 38 28 108 72 Missed 80 | . 15 9 35 21 Damage Taken 2220 | . 298 149 961 812 Core 775 | . 41 24 158 552 Absorbed by Shields . | . . . . . Core Remaining (%) 78 | 100 . 74 60 . Volleys Fired 81 | 2 22 14 31 12 Largest 2 | 2 2 2 2 2 Hottest 131 | 40 40 79 131 126 Shots Fired 149 | 4 44 28 58 15 Gun 128 | 4 44 24 41 15 Cannon 21 | . . 4 17 . Launcher . | . . . . . Special . | . . . . . Kinetic 100 | 4 44 18 34 . Thermal 49 | . . 10 24 15 Explosive . | . . . . . Electromagnetic . | . . . . . Robot Hit Streak 13 | 1 9 5 13 10 Robot Miss Streak 5 | 2 4 5 3 2 Penetration Max . | . . . . . Secondary Targets 1 | . 1 . . . Max Gunslinging Chain 1 | . 1 . . . Shots Hit Robots 93 | 1 28 13 39 12 Core Hits 38 | 1 11 8 14 4 Critical Kills 1 | . 1 . . . Critical Parts Destroyed . | . . . . . Critical Strikes 3 | . 1 1 1 . Destroy 1 | . 1 . . . Blast 2 | . . 1 1 . Melee Attacks . | . . . . . Impact . | . . . . . Slashing . | . . . . . Piercing . | . . . . . Sneak Attacks . | . . . . . Combat Hostiles . | . . . . . Follow-up Attacks . | . . . . . Damage Inflicted 1505 | 12 399 202 663 229 Guns 1219 | 12 399 147 458 203 Cannons 260 | . . 55 205 . Explosions . | . . . . . Melee . | . . . . . Ramming 26 | . . . . 26 Kinetic 917 | 12 399 160 346 . Thermal 562 | . . 42 317 203 Explosive . | . . . . . Electromagnetic . | . . . . . Impact . | . . . . . Slashing . | . . . . . Piercing . | . . . . . Highest Corruption 1 | . . . 1 . Average Corruption 1 | . . . 1 . Corruption Purged . | . . . . . Corruption Blocked . | . . . . . Overload Shots . | . . . . . Overflow Damage . | . . . . . Projectiles . | . . . . . Explosions . | . . . . . Melee . | . . . . . Knockbacks 5 | . . 2 3 . Impact . | . . . . . Kinetic 4 | . . 1 3 . Secondary 1 | . . 1 . . Self-Inflicted Damage 11 | . . . . 11 Shots . | . . . . . Rammed 6 | . . . . 6 Targets Rammed 7 | . . 1 . 6 Kicked 1 | . . 1 . . Crushed . | . . . . . Highest Temperature 201 | . 8 108 201 84 Average Temperature 43 | . 2 43 80 21 Received Heat Transfer 966 | . 141 . 411 414 Siege Activations . | . . . . . Robots Corrupted . | . . . . . Combat Hostiles . | . . . . . Parts Fried . | . . . . . Impact Corruptions 1 | . . 1 . . Robots Melted . | . . . . . Combat Hostiles . | . . . . . Parts Melted 5 | . . . 3 2 Heat Transferred 1258 | . . 111 703 444 Parts Sabotaged . | . . . . . Parts Stolen . | . . . . . Parts Stripped . | . . . . . Power Chain Reactions . | . . . . . Alert | -11 -10 -10 -9 -8 ------- Run | Yrd Mat Min Mat Mat Peak Influence 152 | 5 152 128 151 97 Initial 58 | . 3 58 21 35 Average 58 | 2 60 46 82 72 Maximum Alert Level . | . . . . . Low Security (%) 100 | 100 100 100 100 100 Level 1 . | . . . . . Level 2 . | . . . . . Level 3 . | . . . . . Level 4 . | . . . . . Level 5 . | . . . . . High Security . | . . . . . Max Security . | . . . . . Squads Dispatched 5 | . 1 . 2 2 Investigation 2 | . . . 1 1 Extermination . | . . . . . Reinforcement 3 | . 1 . 1 1 Assault . | . . . . . Garrison . | . . . . . Intercept . | . . . . . Searches Triggered . | . . . . . Construction Impeded . | . . . . . Haulers Reinforced . | . . . . . Active Scanning Responses . | . . . . . Cargo Convoy Interrupts . | . . . . . Stealth | -11 -10 -10 -9 -8 --------- Run | Yrd Mat Min Mat Mat Distress Signals 5 | . . . 2 3 Communications Jammed . | . . . . . Distress Signals . | . . . . . Times Spotted 60 | . 11 8 20 21 Peak Tracking Total 18 | . 7 3 11 18 Tactical Retreats 2 | . . . . 2 Traps | -11 -10 -10 -9 -8 ------- Run | Yrd Mat Min Mat Mat Traps Triggered 3 | . . . 3 . Indirectly . | . . . . . Trap Hack Attempts . | . . . . . Triggered . | . . . . . Disarmed . | . . . . . Reprogrammed . | . . . . . Reused . | . . . . . Traps Extracted . | . . . . . Installed . | . . . . . Triggered . | . . . . . Machines | -11 -10 -10 -9 -8 ---------- Run | Yrd Mat Min Mat Mat Machines Disabled . | . . . . . Max in Single Turn . | . . . . . Machines Repaired . | . . . . . Machines Dismantled . | . . . . . Machines Sabotaged . | . . . . . Overloaded Fab Kills . | . . . . . Hacking | -11 -10 -10 -9 -8 --------- Run | Yrd Mat Min Mat Mat Machines Accessed 5 | . 2 . 2 1 Terminals 4 | . 2 . 1 1 Fabricators . | . . . . . Repair Stations . | . . . . . Recycling Units . | . . . . . Scanalyzers 1 | . . . 1 . Garrison Access . | . . . . . Total Hacks 19 | . 8 . 8 3 Successful 9 | . 2 . 5 2 Failed 10 | . 6 . 3 1 Catastrophic 1 | . 1 . . . Database Lockouts . | . . . . . Manual 12 | . 6 . 3 3 Terminals 16 | . 8 . 5 3 Fabricators . | . . . . . Repair Stations . | . . . . . Recycling Units . | . . . . . Scanalyzers 3 | . . . 3 . Garrison Access . | . . . . . Terminal Hacks 7 | . 2 . 3 2 Robot Analysis 2 | . 2 . . . Prototype ID Bank 1 | . . . 1 . Branch Access Points 1 | . . . . 1 Emergency Access Points 1 | . . . 1 . Terminal Index 1 | . . . . 1 Zone Layout 1 | . . . 1 . Fabricator Hacks . | . . . . . Repair Station Hacks . | . . . . . Recycling Unit Hacks . | . . . . . Scanalyzer 2 | . . . 2 . Insert Component 1 | . . . 1 . Analyze 1 | . . . 1 . Garrison Access Hacks . | . . . . . Unauthorized Hacks . | . . . . . Terminals . | . . . . . Fabricators . | . . . . . Repair Stations . | . . . . . Recycling Units . | . . . . . Scanalyzers . | . . . . . Garrison Access . | . . . . . Data Cores Recovered . | . . . . . Used . | . . . . . Hacking Detections 5 | . 2 . 2 1 Full Trace Events 4 | . 1 . 2 1 Feedback Events . | . . . . . Feedback Blocked . | . . . . . Robot Schematics Acquired . | . . . . . Robots Built . | . . . . . Authchips . | . . . . . Time . | . . . . . Total Robot Build Rating . | . . . . . Part Schematics Acquired . | . . . . . Parts Built . | . . . . . Authchips . | . . . . . Time . | . . . . . Total Part Build Rating . | . . . . . Parts Repaired . | . . . . . Time . | . . . . . Parts Recycled . | . . . . . Recycled Matter . | . . . . . Retrieved Matter . | . . . . . Retrieved Components . | . . . . . Parts Scanalyzed 1 | . . . 1 . Part Schematics Acquired . | . . . . . Parts Damaged . | . . . . . Bothacking | -11 -10 -10 -9 -8 ------------ Run | Yrd Mat Min Mat Mat Used RIF Installer . | . . . . . Robots Hacked . | . . . . . Non-combat . | . . . . . Combat . | . . . . . Robot Hacks Applied . | . . . . . Relay Couplers Released . | . . . . . Fabnet Peak Effective % . | . . . . . Robots Rewired . | . . . . . Allies Hacked . | . . . . . Hacks Repelled . | . . . . . Allies | -11 -10 -10 -9 -8 -------- Run | Yrd Mat Min Mat Mat Total Allies . | . . . . . Largest Group . | . . . . . Highest-Rated Group . | . . . . . Highest-Rated Ally . | . . . . . Total Orders . | . . . . . Ally Attacks . | . . . . . Total Damage . | . . . . . Kills . | . . . . . Allies Corrupted . | . . . . . Allies Melted . | . . . . . Intel | -11 -10 -10 -9 -8 ------- Run | Yrd Mat Min Mat Mat Robot Analysis Total 2 | . 2 . . . Derelict Logs Recovered 2 | . . 2 . . Drone Launches . | . . . . . Drone Recoveries . | . . . . . Exploration | -11 -10 -10 -9 -8 ------------- Run | Yrd Mat Min Mat Mat Turns Passed 1799 | 106 245 751 531 166 Spaces Moved 1377 | 73 135 576 358 235 Core 148 | 13 . . . 135 Treads . | . . . . . Legs 1070 | 60 135 576 299 . Wheels . | . . . . . Hover . | . . . . . Flight 159 | . . . 59 100 Fastest Speed 32 | 50 120 120 32 35 Average Speed 105 | 111 120 120 110 50 Slowest Speed 190 | 190 120 120 190 100 Overloaded Moves . | . . . . . Propulsion Burnouts . | . . . . . Robots Hopped . | . . . . . Cave-ins Triggered . | . . . . . Exploration Rate (%) 28 | 4 17 68 33 21 Regions Visited 4 Branch Regions 1 Pre-discovered Areas 1 | . . 1 . . Known Exits Taken . | . . . . . Unknown Exits Taken 4 | 1 1 1 1 . Scrap Searched 1 | . . 1 . . Spaces Dug . | . . . . . Terrain Destroyed . | . . . . . Melee . | . . . . . Projectile . | . . . . . AOE . | . . . . . Terrain Rammed . | . . . . . Walls Destroyed . | . . . . . Machines Disabled . | . . . . . Actions | -11 -10 -10 -9 -8 --------- Run | Yrd Mat Min Mat Mat Total 1581 | 93 173 609 438 268 Wait 33 | 4 13 2 3 11 Move 1373 | 72 134 575 357 235 Hop . | . . . . . Pick Up 35 | 8 3 7 16 1 Fast Attach 3 | 1 . . 2 . Attach 17 | 6 . 1 7 3 Detach . | . . . . . Swap 10 | . 1 4 5 . Drop 22 | . . 5 17 . Fire 81 | 2 22 14 31 12 Melee . | . . . . . Ram 6 | . . . . 6 Kick 1 | . . 1 . . Crush . | . . . . . Escape Stasis . | . . . . . Rewire . | . . . . . Trap . | . . . . . Miscellaneous . | . . . . . Route ------- -11/Scrapyard -10/Materials -10/Mines -9/Materials (discovered 2 exits: *Mat / Min) -8/Materials (discovered 2 exits: Sto x2) History --------- Turn | Location | Event 19 | -11/Scrapyard | Discovered new exit (range 15) 107 | -11/Scrapyard | Entered Materials 279 | -10/Materials | Discovered new exit (range 16) 305 | -10/Materials | Build established: Mutant 352 | -10/Materials | Entered Mines 358 | -10/Mines | Joined a pair of Derelicts in attacking an 0b10 outpost 460 | -10/Mines | Found a damaged Exp. Sensor Array with a note attached 462 | -10/Mines | Found Prototype Device 544 | -10/Mines | Learned location of Zion (-7) 1079 | -10/Mines | Discovered new exit (range 9) 1103 | -10/Mines | Entered Materials 1103 | -9/Materials | Evolved 2 slots: Utility x2 1104 | -9/Materials | Identified exit to Mines 1179 | -9/Materials | Identified Exp. Sensor Array 1389 | -9/Materials | Build established: Scavenger-Mutant 1629 | -9/Materials | Discovered new exit (range 13) 1634 | -9/Materials | Entered another Materials area 1634 | -8/Materials | Evolved 2 slots: Propulsion x2 1661 | -8/Materials | Lost 3 parts (1p2n) 1755 | -8/Materials | Identified exit to Storage 1779 | -8/Materials | Core integrity fell below 50% 1798 | -8/Materials | Core integrity fell below 20% 1800 | -8/Materials | Destroyed by G-47 Trooper with Particle Gun Last Messages --------------- 01755_ Connecting with Terminal... 01755_ Current location identified: Materials >>Index(Terminals) Found 12 terminals. Downloaded coordinate data. >>Access(Branch) Found 2 branch access points: (63,62) Storage (56,25) Storage Map updated. 01755_ ALERT: Suspicious activity at Terminal M005. Dispatching Investigation squad. 01776_ Cesium-ion Thruster destroyed. 01786_ Slammed into U-05 Engineer. 01794_ Slammed into G-47 Trooper. 01795_ Targeting Computer destroyed. 01795_ Critical hit (Burn: +37). 01797_ Slammed into G-47 Trooper. 01797_ Critical hit (Burn: +37). 01799_ W-25 Informer sends out distress signal. Map ----- +----------------------------------------------------+ | ????????????????????????????????????????# #????# [ | | ?????????????????????###+###????????????# #????# | | ?????????????????????# ########+##### ######## | | ?????????????????????# ^ | | ?????????????????????+ | | ?????????????????????# | | ?????????????????????#! ##########/############ | | ?????????????????????#### ##???# #????? | | ????????????????????????# #????# """ """ #????? | | ????????????????????????# #????# """ ! "T" #????? | | ????????????????????????# #????# """ #????? | | ????????????????????????#g#????# #????? | | ????????????????????????#g#????##############????? | | ????????????????????????# #??????????????????????? | | ????????????????????????# #??????????????????????? | | ?????????????????#####??# ###????????????????????? | | ?????????????????# ?# Y #????????????????????? | | ?????????????????# !# +????????????????????? | | ?????????????????# " " # #????????????????????? | | ?????????????????# "R" + #????????????????????? | | ?????????????????# """ #g #????????????????????? | | ?????????????????# # #????????????????????? | | ?????????????????######?# #????????????????????? | | ????????????????????????#gg #????????????????????? | | ????????????????????????# a#????????????????????? | | ????????????????????????#@ #????????????????????? | | ????????????????????????# g #????????????????????? | | ????????????????????????# #????????????????????? | | ????????????????????????# #????????????????????? | | ????????????????????????# #????????????????????? | | ???????????????????????? #????????????????????? | | ???????????????????????? #????????????????????? | | ??????????????????????? ????????????????????? | | ???????????????????????######????????????????????? | | ?????????????????????????????????????????????????? | | ?????????????????????????????????????????????????? | | ?????????????????????????????????????????????????? | | ?????????????????????????????????????????????????? | | ?????????????????????????????????????????????????? | | ?????????????????????????????????????????????????? | | ?????????????????????????????????????????????????? | | ?????????????????????????????????????????????????? | | ?????????????????????????????????????????????????? | | ?????????????????????????????????????????????????? | | ?????????????????????????????????????????????????? | | ?????????????????????????????????????????????????? | | ?????????????????????????????????????????????????? | | ?????????????????????????????????????????????????? | | ?????????????????????????????????????????????????? | | ?????????????????????????????????????????????????? | +----------------------------------------------------+ Best States ------------- Heat Dissipation 38 Energy Generation 14 Energy Capacity 265 Matter Stores 300 Matter Capacity 300 Sight Range 16 Terrain Scan Density 10 Evasion (%) 63 Targeting Accuracy 5 Offensive Hacking 10 Item Schematics ----------------- None Robot Schematics ------------------ None Fabricated ------------ Nothing Alien Tech Used ----------------- None Achievements -------------- Safety First Challenges ------------ None Game ------ Seed MiningRiotNullifier Manual? 0 Play Time 00:22:00 Cumulative 15.4 hours Start 2024.05.21 @ 14:35:49 End 2024.05.21 @ 14:55:08 Sessions 1 Manual Loads 0 Difficulty Rogue Special Mode None Game No. 34 Rogue 34 Adventurer 0 Explorer 0 Win Type - Total 0 Types 0/0/0/0/0/0/0/0/0 Lore% 24 Gallery% 19 Achievement% 19 Wizard Run 0 Options --------- Layout 1 ASCII 0 Keyboard 0 Movement Mouse Keybinds 0 Fullscreen 1 Font 24/Smallcaps Map View 50x35 Zoom Use 0% Tactical HUD 1 Map Filters NONE Filters NONE Steam 1 RUN: 0491842e-76d8-4738-8e96-746a402e3cf8